bitfinex-derivatives/quotes_SOLF0:USTF0_20250613
["timestamp","ask_amount","ask_price","bid_price","bid_amount"]
[1749789861484,5.72125332,144.56,144.55,0.05279512]
[1749789863787,5.72125332,144.56,144.55,6.96609512]
[1749789866682,6.95928877,144.58,144.55,6.96609512]
[1749789866885,5.74519,144.57,144.55,6.96609512]
[1749789867088,6.95928877,144.58,144.55,6.96609512]
[1749789867289,5.74523653,144.57,144.55,6.96609512]
[1749789867489,6.95928877,144.58,144.56,6.9129]
[1749789867689,5.74230061,144.57,144.55,0.05279512]
[1749789867991,6.95928877,144.58,144.55,6.96569512]
[1749789868194,5.74098145,144.57,144.55,6.96569512]
[1749789868492,6.95928877,144.58,144.55,6.96569512]
[1749789868683,5.74157983,144.57,144.55,6.96569512]
[1749789868885,0.04718877,144.58,144.55,0.05279512]
[1749789869187,0.04718877,144.58,144.55,5.07035242]
[1749789869493,0.04718877,144.58,144.56,6.9126]
[1749789872992,0.04718877,144.58,144.55,5.07035242]
[1749789873193,6.95908877,144.58,144.55,5.07035242]
[1749789873581,6.95908877,144.58,144.55,0.05279512]
[1749789874389,0.04718877,144.58,144.56,6.9126]
[1749789875392,6.95908877,144.58,144.56,6.9126]
[1749789875590,6.95908877,144.58,144.55,0.05279512]
[1749789875591,6.95908877,144.58,144.55,6.96589512]
[1749789875988,0.04718877,144.58,144.55,0.05279512]
[1749789876188,0.04718877,144.58,144.56,6.9128]
[1749789877192,0.04718877,144.58,144.57,6.9124]
[1749789877588,5.7892254,144.58,144.57,6.9124]
[1749789877792,0.04718877,144.58,144.57,6.9124]
[1749789878205,5.78078635,144.6,144.59,6.9114]
[1749789878497,11.52553665,144.6,144.59,6.9114]
[1749789878699,11.52553665,144.6,144.58,11.9291573]
[1749789878998,5.78078635,144.6,144.58,5.0175573]
[1749789879202,5.82533165,144.6,144.59,6.9114]
[1749789879499,11.57055861,144.6,144.59,6.9114]
[1749789880300,5.82533165,144.6,144.59,6.9114]
[1749789881190,3.165e-05,144.6,144.59,6.9114]
[1749789881392,8.61251535,144.62,144.61,6.9105]
[1749789881596,8.61251535,144.62,144.61,11.9280573]
[1749789883297,8.61251535,144.62,144.61,6.9105]
[1749789889907,2.1979,144.68,144.6,5.0175573]
[1749789890212,2.83984637,144.67,144.63,5.0175573]
[1749789890416,6.907,144.69,144.65,6.9083]
[1749789890917,6.907,144.69,144.66,0.04978904]
[1749789891117,143.89242222,144.7,144.66,6.95788904]
[1749789891321,136.98602222,144.7,144.66,0.04978904]
[1749789891612,5.0175573,144.67,144.58,5.0175573]
[1749789891812,6.9089,144.65,144.6,5.0175573]
[1749789892015,42.0975573,144.67,144.6,5.0175573]
[1749789892215,43.9879,144.67,144.63,6.9093]
[1749789892519,0.04585996,144.66,144.64,0.05268916]
[1749789892718,0.04978904,144.66,144.64,0.05069714]
[1749789893321,6.9087,144.65,144.64,0.05069714]
[1749789894017,0.04978904,144.66,144.64,37.13069714]
[1749789894407,0.04978904,144.66,144.64,42.14825444]
[1749789894809,0.04978904,144.66,144.65,6.9086]
[1749789896222,0.04978904,144.66,144.65,11.9261573]
[1749789897518,2.2157,144.72,144.69,6.9063]
[1749789897722,2.2157,144.72,144.69,5.0175573]
[1749789897922,2.2157,144.72,144.64,37.08]
[1749789897923,2.2157,144.72,144.67,5.0175573]
[1749789898119,7.2332573,144.72,144.66,5.0175573]
[1749789898923,6.9057,144.71,144.68,0.05244166]
[1749789899120,7.2332573,144.72,144.68,0.05244166]
[1749789899319,2.2157,144.72,144.68,0.05244166]
[1749789899516,2.2157,144.72,144.68,5.06999896]
[1749789900018,2.2157,144.72,144.69,6.9063]
[1749789900610,9.1209,144.72,144.68,11.97699896]
[1749789900816,9.1209,144.72,144.68,5.06999896]
[1749789901015,2.2157,144.72,144.68,5.06999896]
[1749789901423,2.2157,144.72,144.69,6.9063]
[1749789902423,2.2157,144.72,144.68,6.95934166]
[1749789903016,9.1212,144.72,144.69,6.9065]
[1749789903218,2.2157,144.72,144.68,0.05244166]
[1749789903619,2.2157,144.72,144.68,6.95924166]
[1749789903820,2.2157,144.72,144.68,0.05244166]
[1749789904032,7.2332573,144.72,144.68,0.05244166]
[1749789904323,6.9062,144.71,144.68,0.05244166]
[1749789905026,6.9062,144.71,144.68,6.95924166]
[1749789905522,6.9062,144.71,144.68,0.05244166]
[1749789906026,6.9063,144.7,144.68,0.05244166]
[1749789906220,7.2332573,144.72,144.68,0.05244166]
[1749789906529,6.9065,144.7,144.68,0.05244166]
[1749789906825,2.2157,144.72,144.68,0.05244166]
[1749789907222,6.9066,144.7,144.68,0.05244166]
[1749789907622,2.2157,144.72,144.68,0.05244166]
[1749789907623,39.9557,144.72,144.68,0.05244166]
[1749789907828,5.0175573,144.69,144.64,43.989]
[1749789908023,5.0175573,144.69,144.64,6.909]
[1749789908223,2.3958,144.68,144.64,6.909]
[1749789908427,2.3958,144.68,144.62,5.0175573]
[1749789908428,2.3958,144.68,144.61,37.74]
[1749789908622,5.0175573,144.67,144.61,42.7575573]
[1749789908822,0.04918969,144.65,144.63,0.04541126]
[1749789909227,6.909,144.64,144.63,0.04541126]
[1749789916331,12.44879409,144.64,144.63,0.04541126]
[1749789920041,6.9105,144.61,144.58,49.6692573]
[1749789920540,6.9105,144.61,144.58,44.6517]
[1749789920729,6.911,144.6,144.58,44.6517]
[1749789920928,0.04675322,144.6,144.59,6.9114]
[1749789923045,0.04675322,144.6,144.58,44.69980671]
[1749789923834,0.04675322,144.6,144.59,6.9114]
[1749789925641,0.04675322,144.6,144.58,44.69970671]
[1749789925944,0.04675322,144.6,144.58,0.04800671]
[1749789926346,6.9114,144.59,144.58,0.04800671]
[1749789927541,0.04675322,144.6,144.58,0.04800671]
[1749789928039,6.9114,144.59,144.58,0.04800671]
[1749789928245,6.9114,144.59,144.52,37.76]
[1749789928246,5.52445241,144.59,144.53,5.0175573]
[1749789928550,6.9127,144.57,144.54,6.9136]
[1749789928847,5.0175573,144.58,144.52,42.7775573]
[1749789929349,6.96141285,144.56,144.54,0.04560335]
[1749789930950,0.04821285,144.56,144.54,0.04560335]
[1749789931452,6.96131285,144.56,144.54,0.04560335]
[1749789932546,6.96131285,144.56,144.54,6.95940335]
[1749789933554,6.96131285,144.56,144.54,0.04560335]
[1749789933949,6.9133,144.55,144.54,0.04560335]
[1749789935549,6.9144,144.53,144.49,40.0668]
[1749789935751,5.0175573,144.53,144.46,42.3775573]
[1749789936145,6.9153,144.51,144.48,6.9164]
[1749789936546,6.96558205,144.51,144.48,6.96472493]
[1749789937057,6.96558205,144.51,144.48,0.04822493]
[1749789937451,6.96558205,144.51,144.48,6.96452493]
[1749789940147,0.05028205,144.51,144.49,6.9161]
[1749789940548,0.05028205,144.51,144.48,0.04822493]
[1749789941255,6.96578205,144.51,144.48,6.96472493]
[1749789942254,5.06783935,144.51,144.48,0.04822493]
[1749789942845,6.9162,144.49,144.48,0.04822493]
[1749789943045,5.0175573,144.49,144.44,2.3827]
[1749789943252,5.0175573,144.47,144.4,42.3775573]
[1749789943647,5.0175573,144.45,144.4,37.36]
[1749789943857,6.9199,144.42,144.38,9.1263]
[1749789944057,6.9199,144.42,144.38,6.9212]
[1749789944255,0.04798409,144.41,144.39,0.04787715]
[1749789945259,0.04798409,144.41,144.39,6.96867715]
[1749789945556,6.96808409,144.41,144.39,0.04787715]
[1749789946257,0.04798409,144.41,144.39,0.04787715]
[1749789946563,7.1989573,144.48,144.4,5.0175573]
[1749789946564,37.38,144.46,144.4,5.0175573]
[1749789946959,6.9187,144.44,144.41,6.9199]
[1749789947258,37.38,144.46,144.41,6.9199]
[1749789947561,6.9187,144.44,144.42,0.04798131]
[1749789947961,6.97053427,144.45,144.42,0.04798131]
[1749789948563,6.9187,144.44,144.42,0.04798131]
[1749789948757,5.0175573,144.43,144.42,0.04798131]
[1749789948955,5.0175573,144.43,144.37,37.36]
[1749789949662,6.9202,144.41,144.38,6.9212]
[1749789949964,0.04744316,144.41,144.39,5.0175573]
[1749789950461,0.04744316,144.41,144.4,6.9205]
[1749789954165,0.04744316,144.41,144.39,14.2116573]
[1749789954466,0.04744316,144.41,144.38,0.04409053]
[1749789954859,0.04744316,144.41,144.39,6.9207]
[1749789955468,6.96754316,144.41,144.38,6.96549053]
[1749789956268,6.9207,144.4,144.38,0.04409053]
[1749789957268,0.04744316,144.41,144.38,0.04409053]
[1749789957269,6.921,144.39,144.38,0.04409053]
[1749789959568,6.9222,144.37,144.32,42.4175573]
[1749789960266,6.9222,144.37,144.34,6.923]
[1749789960771,6.9225,144.36,144.34,0.04764658]
[1749789960961,0.04550383,144.37,144.34,0.04764658]
[1749789961157,5.0175573,144.36,144.34,0.04764658]
[1749789961363,5.0175573,144.36,144.29,37.4]
[1749789961563,5.0175573,144.34,144.29,37.4]
[1749789961765,6.9244,144.32,144.28,6.9261]
[1749789961967,6.9244,144.32,144.27,5.0175573]
[1749789962270,0.04645243,144.31,144.28,6.9730928]
[1749789962469,6.97125243,144.31,144.28,6.9730928]
[1749789962668,0.04645243,144.31,144.28,6.9730928]
[1749789964064,6.97135243,144.31,144.28,6.9730928]
[1749789964273,0.04645243,144.31,144.29,6.9257]
[1749789964468,37.4,144.37,144.3,5.0175573]
[1749789964665,37.4,144.37,144.32,5.0175573]
[1749789964865,37.4,144.37,144.32,6.924]
[1749789965265,6.9232,144.35,144.32,6.924]
[1749789965461,0.04567162,144.35,144.32,6.97319531]
[1749789966571,0.04567162,144.35,144.32,0.04919531]
[1749789967170,6.9239,144.33,144.32,0.04919531]
[1749789968459,6.9235,144.34,144.32,0.04919531]
[1749789968969,0.04567162,144.35,144.32,0.04919531]
[1749789969769,6.9239,144.33,144.32,0.04919531]
[1749789970670,0.04567162,144.35,144.22,1.20563322]
[1749789970970,5.0175573,144.32,144.24,5.0175573]
[1749789971268,5.0175573,144.3,144.23,37.34]
[1749789971469,5.0175573,144.28,144.2,42.3575573]
[1749789971661,0.05165119,144.25,144.21,5.0175573]
[1749789971974,0.05165119,144.25,144.23,0.05181583]
[1749789972566,6.9282,144.24,144.23,0.05181583]
[1749789972761,0.05165119,144.25,144.23,0.05181583]
[1749789973568,0.05165119,144.25,144.24,5.0175573]
[1749789973966,0.05165119,144.25,144.23,0.05181583]
[1749789974764,6.97945119,144.25,144.23,0.05181583]
[1749789976174,0.05165119,144.25,144.23,0.05181583]
[1749789976371,0.05165119,144.25,144.24,5.0175573]
[1749789976768,0.05165119,144.25,144.23,0.05181583]
[1749789977076,0.05165119,144.25,144.23,5.06937313]
[1749789978279,0.05165119,144.25,144.23,11.99767313]
[1749789978670,0.05165119,144.25,144.23,5.06937313]
[1749789978872,0.05165119,144.25,144.24,6.9282]
[1749789980276,0.05165119,144.25,144.23,6.98021583]
[1749789980472,0.05165119,144.25,144.23,0.05181583]
[1749789980979,0.05165119,144.25,144.24,6.9282]
[1749789981479,2.2363,144.3,144.26,6.927]
[1749789981677,2.2363,144.3,144.26,11.9445573]
[1749789981879,9.1618,144.3,144.26,11.9445573]
[1749789982581,0.05241505,144.29,144.27,6.97285529]
[1749789982883,6.97821505,144.29,144.27,0.04615529]
[1749789983275,0.05241505,144.29,144.27,0.04615529]
[1749789984378,0.05241505,144.29,144.27,6.97285529]
[1749789985578,0.05241505,144.29,144.27,0.04615529]
[1749789986181,6.97821505,144.29,144.27,0.04615529]
[1749789986575,0.05241505,144.29,144.27,0.04615529]
[1749789986782,0.05241505,144.29,144.27,6.97275529]
[1749789987584,0.05241505,144.29,144.28,6.9262]
[1749789988479,0.05241505,144.29,144.27,6.97265529]
[1749789988981,0.05241505,144.29,144.28,6.9262]
[1749789990286,0.05241505,144.29,144.27,6.97265529]
[1749789991388,0.05241505,144.29,144.28,6.9262]
[1749789992689,0.05241505,144.29,144.27,6.97265529]
[1749789994692,0.05241505,144.29,144.28,6.9262]
[1749789994987,0.05241505,144.29,144.27,0.04615529]
[1749789995891,6.97821505,144.29,144.27,6.97285529]
[1749789996287,6.97821505,144.29,144.27,0.04615529]
[1749789997191,0.05241505,144.29,144.27,6.97285529]
[1749790001491,0.05241505,144.29,144.28,6.9262]
[1749790001887,0.05241505,144.29,144.27,0.04615529]
[1749790002381,0.05241505,144.29,144.27,6.97265529]
[1749790002880,6.97851505,144.29,144.27,0.04615529]
[1749790003289,0.05241505,144.29,144.27,0.04615529]
[1749790003695,0.05241505,144.29,144.27,6.97255529]
[1749790004988,6.97821505,144.29,144.27,0.04615529]
[1749790006400,6.9262,144.28,144.27,0.04615529]
[1749790007899,6.97831505,144.29,144.27,0.04615529]
[1749790008193,5.06997235,144.29,144.27,0.04615529]
[1749790008495,5.06997235,144.29,144.23,6.9284]
[1749790008496,6.9272,144.27,144.23,6.9284]
[1749790008795,5.0175573,144.29,144.23,6.9284]
[1749790008996,7.4085573,144.29,144.23,6.9284]
[1749790009590,0.04529122,144.27,144.25,0.04381405]
[1749790009987,6.9272,144.26,144.25,0.04381405]
[1749790011599,6.9285,144.24,144.21,37.24]
[1749790011801,5.0175573,144.26,144.19,5.0175573]
[1749790011999,5.0175573,144.26,144.18,436.3]
[1749790012196,5.0175573,144.26,144.18,37.26]
[1749790012405,5.0175573,144.24,144.18,37.26]
[1749790012603,0.04477222,144.22,144.2,0.04978604]
[1749790012994,6.9296,144.21,144.2,0.04978604]
[1749790014699,0.04477222,144.22,144.15,5.0175573]
[1749790014700,5.06232952,144.22,144.15,5.0175573]
[1749790014901,5.0175573,144.2,144.14,37.26]
[1749790015096,6.9318,144.17,144.14,37.26]
[1749790015296,6.9318,144.17,144.13,5.0175573]
[1749790015601,0.04397212,144.16,144.14,0.04371092]
[1749790016203,6.97597212,144.16,144.14,0.04371092]
[1749790016402,0.04397212,144.16,144.14,0.04371092]
[1749790017196,6.97617212,144.16,144.14,0.04371092]
[1749790021193,6.9325,144.15,144.14,0.04371092]
[1749790021400,0.04397212,144.16,144.1,5.0175573]
[1749790021701,4.6539,144.16,144.1,5.0175573]
[1749790022300,0.04555176,144.14,144.12,0.05265416]
[1749790022901,0.04555176,144.14,144.12,5.07021146]
[1749790023707,0.04555176,144.14,144.12,12.00391146]
[1749790024106,0.04555176,144.14,144.12,5.07021146]
[1749790024309,0.04555176,144.14,144.12,0.05265416]
[1749790025705,6.9334,144.13,144.12,0.05265416]
[1749790025904,0.04555176,144.14,144.12,0.05265416]
[1749790027205,6.9334,144.13,144.12,0.05265416]
[1749790031608,6.9334,144.13,144.07,2.1706]
[1749790031816,42.2975573,144.15,144.04,41.8575573]
[1749790031817,5.0175573,144.11,144.04,41.8575573]
[1749790032005,5.0175573,144.09,144.04,36.84]
[1749790032209,6.9367,144.07,144.04,36.84]
[1749790032411,5.0175573,144.09,144.04,36.84]
[1749790032916,0.0449525,144.08,144.05,0.04929034]
[1749790033325,6.9810525,144.08,144.05,0.04929034]
[1749790033621,6.9810525,144.08,144.05,6.98629034]
[1749790034325,6.9810525,144.08,144.07,5.0175573]
[1749790034326,0.0449525,144.08,144.07,5.0175573]
[1749790034522,36.84,144.12,144.07,5.0175573]
[1749790034819,43.7737,144.13,144.1,6.9348]
[1749790035621,43.82256335,144.13,144.1,6.9795164]
[1749790036317,36.88886335,144.13,144.1,5.0622737]
[1749790036517,0.04886335,144.13,144.1,5.0622737]
[1749790036822,0.04886335,144.13,144.12,5.0175573]
[1749790037018,0.04886335,144.13,144.12,11.9514573]
[1749790038924,436.24,144.19,144.12,5.0175573]
[1749790039125,6.9318,144.17,144.12,5.0175573]
[1749790039321,6.9318,144.17,144.13,6.9333]
[1749790039723,0.04557719,144.16,144.14,0.04705523]
[1749790040529,0.04557719,144.16,144.14,6.97985523]
[1749790040926,0.04557719,144.16,144.14,0.04705523]
[1749790041129,6.97757719,144.16,144.14,0.04705523]
[1749790042429,0.04557719,144.16,144.14,0.04705523]
[1749790043741,6.97767719,144.16,144.14,0.04705523]
[1749790044142,6.9325,144.15,144.14,0.04705523]
[1749790044343,0.04557719,144.16,144.14,0.04705523]
[1749790044746,6.9325,144.15,144.14,0.04705523]
[1749790046137,6.97777719,144.16,144.14,0.04705523]
[1749790046338,0.04557719,144.16,144.15,5.0175573]
[1749790048047,0.04557719,144.16,144.15,11.9500573]
[1749790049342,0.04557719,144.16,144.14,0.04705523]
[1749790050149,6.9325,144.15,144.14,0.04705523]
[1749790050944,9.69076324,144.15,144.14,0.04705523]
[1749790051145,9.68952404,144.15,144.14,0.04705523]
[1749790051445,9.68901657,144.15,144.14,0.04705523]
[1749790051647,9.68883865,144.15,144.14,0.04705523]
[1749790051845,6.9325,144.15,144.14,0.04705523]
[1749790052245,9.68843969,144.15,144.14,0.04705523]
[1749790052845,9.68885017,144.15,144.14,0.04705523]
[1749790053045,9.68870752,144.15,144.14,0.04705523]
[1749790053247,6.9325,144.15,144.14,0.04705523]
[1749790057850,12.47175192,144.15,144.14,0.04705523]
[1749790058152,6.9325,144.15,144.14,0.04705523]
[1749790058749,12.46774436,144.15,144.14,0.04705523]
[1749790058948,15.21542401,144.15,144.14,0.04705523]
[1749790059146,15.21574616,144.15,144.14,0.04705523]
[1749790059342,12.46774436,144.15,144.14,0.04705523]
[1749790059657,0.04557719,144.16,144.14,0.04705523]
[1749790060653,0.04557719,144.16,144.15,5.0175573]
[1749790060856,0.04557719,144.16,144.15,11.9500573]
[1749790062054,4.6413,144.21,144.17,6.9313]
[1749790062257,2.75005648,144.2,144.13,36.74]
[1749790062457,4.6413,144.21,144.15,5.0175573]
[1749790062651,2.75004641,144.2,144.15,5.0175573]
[1749790062953,6.98022885,144.19,144.16,6.98434126]
[1749790063454,6.9312,144.18,144.16,0.05244126]
[1749790063660,0.04942885,144.19,144.16,0.05244126]
[1749790063958,6.9314,144.18,144.16,0.05244126]
[1749790065258,6.9315,144.17,144.16,0.05244126]
[1749790066048,6.9325,144.15,144.11,5.0175573]
[1749790066356,5.0175573,144.2,144.13,11.9505573]
[1749790066547,2.75337668,144.19,144.13,11.9505573]
[1749790066752,6.9323,144.16,144.13,5.0175573]
[1749790066946,5.0175573,144.2,144.13,5.0175573]
[1749790067154,0.04380806,144.16,144.13,5.06432251]
[1749790067353,0.04380806,144.16,144.13,0.04676521]
[1749790068053,6.9329,144.14,144.13,0.04676521]
[1749790069964,6.9329,144.14,144.04,36.74]
[1749790069965,5.0175573,144.14,144.04,36.74]
[1749790070157,5.0175573,144.12,144.04,41.7575573]
[1749790070364,36.74,144.13,144.06,6.9364]
[1749790070660,6.9352,144.1,144.06,6.9364]
[1749790071064,0.04816346,144.09,144.07,0.04566683]
[1749790071967,0.04816346,144.09,144.07,6.98196683]
[1749790073167,0.04816346,144.09,144.07,0.04566683]
[1749790074661,0.04816346,144.09,144.07,6.98186683]
[1749790075265,2.1903,144.15,144.08,41.7575573]
[1749790075457,2.1903,144.15,144.11,5.0175573]
[1749790075962,2.1903,144.15,144.1,5.0175573]
[1749790076365,0.04982029,144.14,144.11,0.05245084]
[1749790076567,6.98312029,144.14,144.11,6.98675084]
[1749790076755,6.98312029,144.14,144.11,0.05245084]
[1749790077268,6.98312029,144.14,144.11,6.98685084]
[1749790077463,6.9336,144.13,144.11,0.05245084]
[1749790077660,0.04982029,144.14,144.11,0.05245084]
[1749790078460,6.9335,144.13,144.11,0.05245084]
[1749790080571,6.9339,144.12,144.11,0.05245084]
[1749790080961,5.0175573,144.12,144.06,5.0175573]
[1749790081164,6.9351,144.1,144.06,5.0175573]
[1749790081772,6.9351,144.1,144.07,6.9362]
[1749790081970,6.98436966,144.1,144.07,6.98213083]
[1749790082168,6.98436966,144.1,144.07,0.04593083]
[1749790082565,6.98436966,144.1,144.06,5.0175573]
[1749790082869,6.98436966,144.1,144.07,6.936]
[1749790083070,0.04926966,144.1,144.06,5.0175573]
[1749790083467,0.04926966,144.1,144.08,6.9356]
[1749790083669,0.04926966,144.1,144.08,6.987781]
[1749790083867,0.04926966,144.1,144.08,0.052181]
[1749790084264,0.04926966,144.1,144.08,5.0697383]
[1749790084869,0.04926966,144.1,144.09,6.9353]
[1749790085962,2.1903,144.15,144.12,6.9339]
[1749790086170,43.2097649,144.16,144.11,5.0175573]
[1749790086375,6.4697649,144.16,144.13,5.0175573]
[1749790086569,6.4697649,144.16,144.14,6.9327]
[1749790086767,6.4697649,144.16,144.13,5.0175573]
[1749790086966,6.51636288,144.16,144.15,6.9325]
[1749790087171,6.51636288,144.16,144.15,11.9500573]
[1749790087769,6.11355151,144.17,144.16,6.932]
[1749790088876,0.04823375,144.18,144.17,6.9315]
[1749790089065,0.04600574,144.19,144.17,5.0175573]
[1749790089264,0.04600574,144.19,144.17,41.7575573]
[1749790089469,0.04600574,144.19,144.18,6.931]
[1749790089875,6.45034437,144.23,144.22,6.9291]
[1749790090178,6.45034437,144.23,144.21,5.0175573]
[1749790090675,6.45034437,144.23,144.22,6.9291]
[1749790093773,6.45034437,144.23,144.21,36.76982789]
[1749790093976,6.45034437,144.23,144.22,5.0175573]
[1749790094481,6.45034437,144.23,144.22,11.9466573]
[1749790097279,0.05148802,144.24,144.23,6.9286]
[1749790097680,0.05148802,144.24,144.22,5.0175573]
[1749790100489,6.97978802,144.24,144.22,5.0175573]
[1749790102091,0.05148802,144.24,144.22,5.0175573]
[1749790103292,0.05148802,144.24,144.22,11.9464573]
[1749790104587,0.05148802,144.24,144.22,5.0175573]
[1749790104787,135.5698169,144.31,144.22,5.0175573]
[1749790104993,2.2526,144.34,144.3,5.0175573]
[1749790105189,2.2526,144.34,144.32,5.0175573]
[1749790105384,6.9242,144.33,144.32,5.0175573]
[1749790105993,6.9243,144.32,144.31,0.04637715]
[1749790108388,5.0175573,144.32,144.25,41.7175573]
[1749790108596,5.0175573,144.32,144.25,48.6450573]
[1749790108793,6.926,144.29,144.25,48.6450573]
[1749790109301,6.97533115,144.28,144.26,0.04581007]
[1749790109504,0.04883115,144.28,144.26,0.04581007]
[1749790109889,6.9267,144.27,144.26,0.04581007]
[1749790110795,6.928,144.25,144.23,5.0175573]
[1749790111895,6.98064536,144.25,144.23,5.06608544]
[1749790113298,0.05264536,144.25,144.23,5.06608544]
[1749790115006,0.05264536,144.25,144.23,11.99468544]
[1749790115809,0.05264536,144.25,144.23,5.06608544]
[1749790116903,0.05264536,144.25,144.23,11.99428544]
[1749790117214,0.05264536,144.25,144.23,5.06608544]
[1749790117611,0.05264536,144.25,144.23,0.04852814]
[1749790118105,6.9294,144.22,144.19,36.7]
[1749790118814,44.0598573,144.25,144.19,36.7]
[1749790119111,0.05267354,144.23,144.21,0.05274844]
[1749790119310,6.98167354,144.23,144.21,0.05274844]
[1749790120009,0.05267354,144.23,144.21,0.05274844]
[1749790120907,6.98157354,144.23,144.21,0.05274844]
[1749790121109,0.05267354,144.23,144.21,0.05274844]
[1749790121416,6.9291,144.22,144.21,0.05274844]
[1749790121611,0.05267354,144.23,144.21,0.05274844]
[1749790122108,6.98147354,144.23,144.21,0.05274844]
[1749790123611,6.9291,144.22,144.21,0.05274844]
[1749790124916,5.07023084,144.23,144.17,6.9313]
[1749790125413,5.07023084,144.23,144.16,41.7175573]
[1749790126018,5.07023084,144.23,144.18,0.04863475]
[1749790129020,6.9297,144.21,144.18,6.97933475]
[1749790130120,6.9297,144.21,144.18,0.04863475]
[1749790130630,6.9297,144.21,144.18,6.97953475]
[1749790131024,6.9297,144.21,144.18,0.04863475]
[1749790134128,6.9301,144.2,144.18,0.04863475]
[1749790134326,0.04722634,144.2,144.18,0.04863475]
[1749790134726,0.04722634,144.2,144.19,6.9305]
[1749790135126,0.04722634,144.2,144.18,0.04863475]
[1749790135929,6.97762634,144.2,144.18,0.04863475]
[1749790136131,0.04722634,144.2,144.18,0.04863475]
[1749790138128,6.9305,144.19,144.18,0.04863475]
[1749790139735,5.0175573,144.19,144.1,36.72]
[1749790139937,5.0175573,144.16,144.1,36.72]
[1749790140140,36.72,144.17,144.1,36.72]
[1749790140332,6.9325,144.15,144.11,6.9341]
[1749790140639,0.04828031,144.14,144.12,0.04866606]
[1749790142938,0.04828031,144.14,144.13,5.0175573]
[1749790143333,0.04828031,144.14,144.13,11.9509573]
[1749790150549,0.04828031,144.14,144.13,6.9334]
[1749790150938,0.04828031,144.14,144.12,0.04866606]
[1749790151346,6.98158031,144.14,144.12,0.04866606]
[1749790152550,6.9334,144.13,144.12,0.04866606]
[1749790153142,0.04828031,144.14,144.12,0.04866606]
[1749790153339,0.04828031,144.14,144.13,5.0175573]
[1749790153650,0.04828031,144.14,144.13,11.9509573]
[1749790156254,4.5328,144.19,144.13,5.0175573]
[1749790156453,4.5328,144.19,144.16,5.0175573]
[1749790157156,4.58474414,144.19,144.16,12.00015631]
[1749790157554,11.51554414,144.19,144.16,5.06845631]
[1749790157748,4.58474414,144.19,144.16,0.05089901]
[1749790158354,6.9315,144.17,144.16,0.05089901]
[1749790158957,6.9311,144.18,144.16,0.05089901]
[1749790159348,4.58474414,144.19,144.16,0.05089901]
[1749790159548,6.9315,144.17,144.16,0.05089901]
[1749790159849,4.58474414,144.19,144.16,0.05089901]
[1749790160444,6.9315,144.18,144.16,0.05089901]
[1749790160647,4.58474414,144.19,144.16,0.05089901]
[1749790160849,41.7175573,144.18,144.16,0.05089901]
[1749790161055,6.9333,144.14,144.11,43.6341]
[1749790162049,6.9787439,144.14,144.11,43.68169876]
[1749790162459,0.0454439,144.14,144.12,6.9339]
[1749790162655,0.0454439,144.14,144.12,5.0175573]
[1749790163058,0.0454439,144.14,144.13,6.9334]
[1749790165162,2.2959,144.19,144.12,5.0175573]
[1749790165347,2.2959,144.19,144.16,5.0175573]
[1749790165757,6.9303,144.2,144.16,5.0175573]
[1749790165959,0.04696384,144.19,144.18,5.0175573]
[1749790166158,0.04596562,144.2,144.18,11.9485573]
[1749790167256,0.04596562,144.2,144.17,5.06463614]
[1749790167667,0.04596562,144.2,144.17,11.99573614]
[1749790168054,0.04596562,144.2,144.17,5.06463614]
[1749790169761,0.04596562,144.2,144.18,6.931]
[1749790172362,0.04596562,144.2,144.19,6.9305]
[1749790173468,0.04596562,144.2,144.19,11.9480573]
[1749790173969,0.04596562,144.2,144.19,5.0175573]
[1749790174268,0.04596562,144.2,144.18,6.9308]
[1749790174660,0.04596562,144.2,144.19,6.9305]
[1749790174861,2.3509,144.25,144.19,41.7175573]
[1749790175066,2.3509,144.25,144.22,5.0175573]
[1749790175368,9.2786,144.25,144.22,11.9464573]
[1749790176070,2.39956104,144.25,144.22,0.05004697]
[1749790177167,9.32736104,144.25,144.22,0.05004697]
[1749790178676,7.41711834,144.25,144.22,0.05004697]
[1749790178869,7.41711834,144.25,144.18,5.0175573]
[1749790179169,6.93,144.21,144.16,41.6775573]
[1749790179370,6.93,144.21,144.18,6.9309]
[1749790179772,6.97687041,144.21,144.18,6.97770046]
[1749790179977,6.97687041,144.21,144.18,11.99525776]
[1749790180278,0.04687041,144.21,144.18,0.04680046]
[1749790180481,5.06442771,144.21,144.18,0.04680046]
[1749790180782,6.9305,144.19,144.18,0.04680046]
[1749790184282,6.9301,144.2,144.18,0.04680046]
[1749790186381,6.9305,144.19,144.18,0.04680046]
[1749790186984,6.97647041,144.21,144.18,0.04680046]
[1749790187282,0.04687041,144.21,144.18,0.04680046]
[1749790187480,6.97667041,144.21,144.18,0.04680046]